Cogmind - Beta 12 @@@ ROGUE MODE // 2023.04.09 @ 23:45:03 Player: Mr Goldstein Result: Destroyed by G-47 Trooper with Particle Gun Performance ------------- Evolutions (3) 1500 Regions Visited (6) 1200 Robots Destroyed (1) 5 Value Destroyed (10) 10 Prototype IDs (0) 0 Alien Tech Used (0) 0 Bonus (0) 0 TOTAL SCORE: 2715 Bonus ------- None Cogmind --------- Core Integrity 0/700 Matter 300/300 Energy 100/100 System Corruption 4% Temperature Cool (9) Movement Core (50) Location -7/Storage Parts ------- > --- POWER (1) -------- (None) > --- PROPULSION (2) --- (None) > --- UTILITY (8) ------ (None) > --- WEAPON (2) ------- (None) > --- INVENTORY (5) ---- (None) Peak State ------------ None Favorites ----------- Power None Propulsion None Utility None Weapon None Build | -11 -10 -10 -9 -8 -7 -7 ------- Run | Jun Mat Min Mat Mat Fac Sto Slots Evolved 6 | . . . 2 2 2 . Power . | . . . . . . . Propulsion . | . . . . . . . Utility 6 | . . . 2 2 2 . Weapon . | . . . . . . . Parts Attached . | . . . . . . . Power . | . . . . . . . Engine . | . . . . . . . Core . | . . . . . . . Reactor . | . . . . . . . Propulsion . | . . . . . . . Treads . | . . . . . . . Leg . | . . . . . . . Wheel . | . . . . . . . Hover . | . . . . . . . Flight . | . . . . . . . Utility . | . . . . . . . Device . | . . . . . . . Storage . | . . . . . . . Processor . | . . . . . . . Hackware . | . . . . . . . Protection . | . . . . . . . Artifact . | . . . . . . . Weapon . | . . . . . . . Energy Gun . | . . . . . . . Energy Cannon . | . . . . . . . Ballistic Gun . | . . . . . . . Ballistic Cannon . | . . . . . . . Launcher . | . . . . . . . Special Weapon . | . . . . . . . Impact Weapon . | . . . . . . . Slashing Weapon . | . . . . . . . Piercing Weapon . | . . . . . . . Special Melee Weapon . | . . . . . . . Unidentified Prototypes . | . . . . . . . Parts Lost . | . . . . . . . Power . | . . . . . . . Propulsion . | . . . . . . . Utility . | . . . . . . . Weapon . | . . . . . . . Highest Loss Streak . | . . . . . . . To Critical Strikes . | . . . . . . . Average Slot Usage (%) . | . . . . . . . Naked Turns 289 | . 25 27 79 68 25 65 Heaviest Build . | . . . . . . . Greatest Support 3 | 3 3 3 3 3 3 3 Greatest Overweight (x) . | . . . . . . . Average Overweight (x) . | . . . . . . . Largest Inventory Capacity 5 | 5 5 5 5 5 5 5 Average Capacity 5 | 5 5 5 5 5 5 5 Most Carried . | . . . . . . . Average Carried . | . . . . . . . Final Capacity 5 | 5 5 5 5 5 5 5 Final Carried . | . . . . . . . Class Distribution -------------------- 100% | Mutant Dominant Class ---------------- Mutant | -10/Materials Mutant | -10/Mines Mutant | -9/Materials Mutant | -8/Materials Mutant | -7/Factory Mutant | -7/Storage Resources | -11 -10 -10 -9 -8 -7 -7 ----------- Run | Jun Mat Min Mat Mat Fac Sto Matter Collected 107 | 74 . 33 . . . . Remotely . | . . . . . . . Salvage Created 20 | . . 20 . . . . Parts 1 | . . 1 . . . . Haulers Intercepted . | . . . . . . . Recyclers Shooed 1 | . . . . 1 . . Parts Field Recycled . | . . . . . . . Retrieved Matter . | . . . . . . . Parts Self-Destructed . | . . . . . . . Prevented . | . . . . . . . Kills | -11 -10 -10 -9 -8 -7 -7 ------- Run | Jun Mat Min Mat Mat Fac Sto Combat Hostiles Destroyed 1 | . . 1 . . . . Melee 1 | . . 1 . . . . Classes Destroyed 1 | . . 1 . . . . Swarmer 1 | . . 1 . . . . Best Kill Streak 1 | . . 1 . . . . Combat Bots Only 1 | . . 1 . . . . Max Kills in Single Turn 1 | . . 1 . . . . Gunslinging . | . . . . . . . Exploded . | . . . . . . . Melee 1 | . . 1 . . . . Uniques/NPCs Destroyed . | . . . . . . . Combat | -11 -10 -10 -9 -8 -7 -7 -------- Run | Jun Mat Min Mat Mat Fac Sto Damage Taken 1377 | . 94 75 207 299 158 544 Core 1377 | . 94 75 207 299 158 544 Absorbed by Shields . | . . . . . . . Core Remaining (%) 56 | 100 . 32 48 45 . . Volleys Fired . | . . . . . . . Largest . | . . . . . . . Hottest . | . . . . . . . Shots Fired . | . . . . . . . Gun . | . . . . . . . Cannon . | . . . . . . . Launcher . | . . . . . . . Special . | . . . . . . . Kinetic . | . . . . . . . Thermal . | . . . . . . . Explosive . | . . . . . . . Electromagnetic . | . . . . . . . Robot Hit Streak . | . . . . . . . Robot Miss Streak . | . . . . . . . Penetration Max . | . . . . . . . Secondary Targets . | . . . . . . . Shots Hit Robots . | . . . . . . . Core Hits 6 | . . 2 1 2 . 1 Critical Kills . | . . . . . . . Critical Parts Destroyed . | . . . . . . . Critical Strikes . | . . . . . . . Melee Attacks . | . . . . . . . Impact . | . . . . . . . Slashing . | . . . . . . . Piercing . | . . . . . . . Sneak Attacks . | . . . . . . . Combat Hostiles . | . . . . . . . Follow-up Attacks . | . . . . . . . Damage Inflicted 151 | . . 31 23 46 11 40 Guns . | . . . . . . . Cannons . | . . . . . . . Explosions . | . . . . . . . Melee . | . . . . . . . Ramming 151 | . . 31 23 46 11 40 Kinetic . | . . . . . . . Thermal . | . . . . . . . Explosive . | . . . . . . . Electromagnetic . | . . . . . . . Impact . | . . . . . . . Slashing . | . . . . . . . Piercing . | . . . . . . . Highest Corruption 4 | . . 2 . . . 4 Average Corruption 2 | . . 2 . . . 2 Corruption Purged . | . . . . . . . Corruption Blocked . | . . . . . . . Effects 1 | . . 1 . . . . Energy Discharges 1 | . . 1 . . . . Overload Shots . | . . . . . . . Overflow Damage 1 | . . . . . 1 . Projectiles . | . . . . . . . Explosions . | . . . . . . . Melee 1 | . . . . . 1 . Knockbacks 1 | . . . 1 . . . Impact 1 | . . . 1 . . . Kinetic . | . . . . . . . Secondary . | . . . . . . . Self-Inflicted Damage 69 | . . 13 11 22 5 18 Shots . | . . . . . . . Rammed 31 | . . 9 3 9 1 9 Targets Rammed 31 | . . 9 3 9 1 9 Kicked . | . . . . . . . Crushed . | . . . . . . . Highest Temperature . | . . . . . . . Average Temperature . | . . . . . . . Received Heat Transfer 219 | . 51 9 54 9 48 48 Siege Activations . | . . . . . . . Robots Corrupted . | . . . . . . . Combat Hostiles . | . . . . . . . Parts Fried . | . . . . . . . Impact Corruptions 1 | . . . . . 1 . Robots Melted . | . . . . . . . Combat Hostiles . | . . . . . . . Parts Melted . | . . . . . . . Heat Transferred . | . . . . . . . Parts Sabotaged . | . . . . . . . Parts Stolen . | . . . . . . . Parts Stripped . | . . . . . . . Power Chain Reactions . | . . . . . . . Missiles Intercepted . | . . . . . . . Alert | -11 -10 -10 -9 -8 -7 -7 ------- Run | Jun Mat Min Mat Mat Fac Sto Peak Influence 173 | . 38 34 173 147 81 130 Initial 72 | . . 14 13 72 66 36 Average 64 | . 21 18 67 108 71 59 Maximum Alert Level . | . . . . . . . Low Security (%) 100 | 100 100 100 100 100 100 100 Level 1 . | . . . . . . . Level 2 . | . . . . . . . Level 3 . | . . . . . . . Level 4 . | . . . . . . . Level 5 . | . . . . . . . High Security . | . . . . . . . Max Security . | . . . . . . . Squads Dispatched 6 | . . . 1 2 . 3 Investigation 4 | . . . 1 1 . 2 Extermination . | . . . . . . . Reinforcement 2 | . . . . 1 . 1 Assault . | . . . . . . . Garrison . | . . . . . . . Intercept . | . . . . . . . Searches Triggered . | . . . . . . . Construction Impeded . | . . . . . . . Haulers Reinforced . | . . . . . . . Active Scanning Responses . | . . . . . . . Cargo Convoy Interrupts . | . . . . . . . Stealth | -11 -10 -10 -9 -8 -7 -7 --------- Run | Jun Mat Min Mat Mat Fac Sto Distress Signals 5 | . . . 1 1 . 3 Communications Jammed . | . . . . . . . Distress Signals . | . . . . . . . Times Spotted 53 | . 5 3 14 10 6 15 Peak Tracking Total 12 | . 5 3 11 10 6 12 Tactical Retreats 6 | . . . 3 2 . 1 Traps | -11 -10 -10 -9 -8 -7 -7 ------- Run | Jun Mat Min Mat Mat Fac Sto Traps Triggered 1 | . . . . . . 1 Indirectly . | . . . . . . . Trap Hack Attempts . | . . . . . . . Triggered . | . . . . . . . Disarmed . | . . . . . . . Reprogrammed . | . . . . . . . Reused . | . . . . . . . Traps Extracted . | . . . . . . . Installed . | . . . . . . . Triggered . | . . . . . . . Machines | -11 -10 -10 -9 -8 -7 -7 ---------- Run | Jun Mat Min Mat Mat Fac Sto Machines Disabled . | . . . . . . . Max in Single Turn . | . . . . . . . Machines Repaired . | . . . . . . . Machines Sabotaged . | . . . . . . . Overloaded Fab Kills . | . . . . . . . Hacking | -11 -10 -10 -9 -8 -7 -7 --------- Run | Jun Mat Min Mat Mat Fac Sto Machines Accessed 5 | . 1 . 1 1 . 2 Terminals 5 | . 1 . 1 1 . 2 Fabricators . | . . . . . . . Repair Stations . | . . . . . . . Recycling Units . | . . . . . . . Scanalyzers . | . . . . . . . Garrison Access . | . . . . . . . Total Hacks 11 | . 2 . 2 2 . 5 Successful 2 | . 1 . . . . 1 Failed 9 | . 1 . 2 2 . 4 Catastrophic 3 | . . . 1 1 . 1 Database Lockouts . | . . . . . . . Manual 6 | . 2 . 2 . . 2 Terminals 11 | . 2 . 2 2 . 5 Fabricators . | . . . . . . . Repair Stations . | . . . . . . . Recycling Units . | . . . . . . . Scanalyzers . | . . . . . . . Garrison Access . | . . . . . . . Terminal Hacks 2 | . 1 . . . . 1 Open Door 1 | . . . . . . 1 Branch Access Points 1 | . 1 . . . . . Fabricator Hacks . | . . . . . . . Repair Station Hacks . | . . . . . . . Recycling Unit Hacks . | . . . . . . . Scanalyzer . | . . . . . . . Garrison Access Hacks . | . . . . . . . Unauthorized Hacks . | . . . . . . . Terminals . | . . . . . . . Fabricators . | . . . . . . . Repair Stations . | . . . . . . . Recycling Units . | . . . . . . . Scanalyzers . | . . . . . . . Garrison Access . | . . . . . . . Data Cores Recovered . | . . . . . . . Used . | . . . . . . . Hacking Detections 5 | . 1 . 1 1 . 2 Full Trace Events 4 | . . . 1 1 . 2 Feedback Events . | . . . . . . . Feedback Blocked . | . . . . . . . Robot Schematics Acquired . | . . . . . . . Robots Built . | . . . . . . . Authchips . | . . . . . . . Time . | . . . . . . . Total Robot Build Rating . | . . . . . . . Part Schematics Acquired . | . . . . . . . Parts Built . | . . . . . . . Authchips . | . . . . . . . Time . | . . . . . . . Total Part Build Rating . | . . . . . . . Parts Repaired . | . . . . . . . Time . | . . . . . . . Parts Recycled . | . . . . . . . Recycled Matter . | . . . . . . . Retrieved Matter . | . . . . . . . Retrieved Components . | . . . . . . . Parts Scanalyzed . | . . . . . . . Part Schematics Acquired . | . . . . . . . Parts Damaged . | . . . . . . . Bothacking | -11 -10 -10 -9 -8 -7 -7 ------------ Run | Jun Mat Min Mat Mat Fac Sto Used RIF Installer . | . . . . . . . Robots Hacked . | . . . . . . . Non-combat . | . . . . . . . Combat . | . . . . . . . Robot Hacks Applied . | . . . . . . . Relay Couplers Released . | . . . . . . . Fabnet Peak Effective % . | . . . . . . . Robots Rewired . | . . . . . . . Allies Hacked . | . . . . . . . Hacks Repelled . | . . . . . . . Allies | -11 -10 -10 -9 -8 -7 -7 -------- Run | Jun Mat Min Mat Mat Fac Sto Total Allies 1 | . . 1 . . . . Largest Group 1 | . . 1 1 . . . Highest-Rated Group 31 | . . 31 31 . . . Highest-Rated Ally 31 | . . 31 31 . . . Total Orders . | . . . . . . . Ally Attacks 4 | . . . 4 . . . Total Damage 62 | . . . 62 . . . Kills . | . . . . . . . Allies Corrupted . | . . . . . . . Allies Melted . | . . . . . . . Intel | -11 -10 -10 -9 -8 -7 -7 ------- Run | Jun Mat Min Mat Mat Fac Sto Robot Analysis Total . | . . . . . . . Derelict Logs Recovered . | . . . . . . . Drone Launches . | . . . . . . . Drone Recoveries . | . . . . . . . Exploration | -11 -10 -10 -9 -8 -7 -7 ------------- Run | Jun Mat Min Mat Mat Fac Sto Turns Passed 299 | 10 25 27 79 68 25 65 Spaces Moved 533 | 19 49 36 151 118 48 112 Core 533 | 19 49 36 151 118 48 112 Treads . | . . . . . . . Legs . | . . . . . . . Wheels . | . . . . . . . Hover . | . . . . . . . Flight . | . . . . . . . Fastest Speed 50 | 50 50 50 50 50 50 50 Average Speed 50 | 50 50 50 50 50 50 50 Slowest Speed 50 | 50 50 50 50 50 50 50 Overloaded Moves . | . . . . . . . Propulsion Burnouts . | . . . . . . . Robots Hopped . | . . . . . . . Cave-ins Triggered . | . . . . . . . Exploration Rate (%) 16 | 4 18 11 28 15 3 33 Regions Visited 6 Branch Regions 2 Pre-discovered Areas . | . . . . . . . Known Exits Taken 1 | . 1 . . . . . Unknown Exits Taken 5 | 1 . 1 1 1 1 . Scrap Searched . | . . . . . . . Spaces Dug . | . . . . . . . Terrain Destroyed . | . . . . . . . Melee . | . . . . . . . Projectile . | . . . . . . . AOE . | . . . . . . . Terrain Rammed . | . . . . . . . Walls Destroyed . | . . . . . . . Machines Disabled . | . . . . . . . Actions | -11 -10 -10 -9 -8 -7 -7 --------- Run | Jun Mat Min Mat Mat Fac Sto Total 558 | 18 48 44 153 126 48 121 Wait . | . . . . . . . Move 528 | 18 48 35 150 117 48 112 Hop . | . . . . . . . Pick Up . | . . . . . . . Fast Attach . | . . . . . . . Attach . | . . . . . . . Detach . | . . . . . . . Swap . | . . . . . . . Drop . | . . . . . . . Fire . | . . . . . . . Melee . | . . . . . . . Ram 30 | . . 9 3 9 . 9 Kick . | . . . . . . . Crush . | . . . . . . . Escape Stasis . | . . . . . . . Rewire . | . . . . . . . Trap . | . . . . . . . Miscellaneous . | . . . . . . . Route ------- -11/Junkyard -10/Materials (discovered 2 exits: *Min x2) -10/Mines -9/Materials -8/Materials -7/Factory -7/Storage History --------- Turn | Location | Event 3 | -11/Junkyard | Discovered new exit (range 15) 11 | -11/Junkyard | Entered Materials 15 | -10/Materials | Identified exit to Mines 36 | -10/Materials | Entered Mines 45 | -10/Mines | Discovered new exit (range 13) 53 | -10/Mines | Core integrity fell below 50% 58 | -10/Mines | Escorted by a lone wolf Derelict 63 | -10/Mines | Entered Materials 63 | -9/Materials | Accompanied by 1 ally 63 | -9/Materials | Evolved 2 slots: Utility x2 125 | -9/Materials | Core integrity fell below 50% 134 | -9/Materials | Discovered new exit (range 16) 142 | -9/Materials | Entered another Materials area 142 | -8/Materials | Evolved 2 slots: Utility x2 183 | -8/Materials | Core integrity fell below 50% 207 | -8/Materials | Discovered new exit (range 5) 210 | -8/Materials | Entered Factory 210 | -7/Factory | Evolved 2 slots: Utility x2 228 | -7/Factory | Discovered new exit (range 14) 235 | -7/Factory | Entered Storage 277 | -7/Storage | Core integrity fell below 50% 298 | -7/Storage | Core integrity fell below 20% 300 | -7/Storage | Destroyed by G-47 Trooper with Particle Gun Last Messages --------------- Sealed Heavy Doors opened. 00253_ ALERT: Suspicious activity at Terminal S009. Dispatching Investigation squad. 00256_ U-05 Engineer lays Concrete. 00264_ W-25 Informer sends out distress signal. 00268_ Slammed into S-27 Virus. 00269_ Destabilizing: System corrupted (+2). 00270_ Slammed into S-27 Virus. 00294_ O-16 Technician sends out distress signal. 00294_ O-16 Technician: "IFF HANDSHAKE FAILED. SECURING TERMINAL." 00295_ Slug penetrates Wall. 00296_ Slammed into K-01 Serf. 00297_ Slammed into H-55 Commando. 00297_ K-01 Serf sends out distress signal. 00297_ ALERT: Hostiles spotted, dispatching reinforcements to Terminal S003. 00297_ Slug penetrates Wall. 00298_ Slammed into Y-54 Guardian. 00298_ Destabilizing: System corrupted (+2). 00299_ Slammed into Y-54 Guardian. 00300_ Slammed into G-47 Trooper. Map ----- +----------------------------------------------------+ | | | | | ?????????????????????????????????????? | | ?????????????????????????????????????? | | ?????????????????????????????????????? | | ?????????????????????????????????????? | | ?????????????????????????????????????? | | ?????????????????????????????????????? | | ?????????????????????????????????????? | | ?????????????????????????????????????? | | ?????????????????????????????????????? | | ?????????????????????????????????????? | | ?????????????????????????????????????? | | ?????????????????????????????????????? | | ?????????????????????????????????????? | | ?????????????????????????????????????? | | ?????????????????????????????????????? | | ?????????????????????????????????????? | | ?????????????????????????????????????? | | ???????????????????????????????#?????? | | ?????????????????????????????? ###???? | | ?????????????????????????????!!"" #??? | | ????????????????????????????%!!"""#??? | | ??????????????????????##### !! R"#??? | | ??????????# g##### g # """???? | | ??????????+ g aug Y@/o" #?????? | | ?????????????????+#####hsg# T ]#?????? | | ??????????????????????##s##?? #?????? | | ???????????????????????#s#?????#?????? | | ???????????????????????#h#######?????? | | ???????????????????????# +?????? | | ??????????##########???# #?????? | | ??????????# ##### #?????? | | ??????????# "" + +?????? | | ??????????# "" ########### #?????? | | ??????????# Y" #?????????? #?????? | | ??????????# [[! "" #??????????? ?????? | | ??????????# [[! "" #???????????? ????? | | ??????????# [[ #????????????? ???? | | ??????????# #??????????????#??? | | ??????????# #?????????????????? | | ####+#########+#+###?????????????????? | | #?????????????????? | | +?????????????????? | | #?????????????????? | | ###### #####+###+#?????????????????? | | ????#" #???????????????????????????? | | ??#T #???????????????????????????? | | ##" #???????????????????????????? | | ### #???????????????????????????? | +----------------------------------------------------+ Best States ------------- Heat Dissipation 34 Energy Generation 5 Energy Capacity 100 Matter Stores 300 Matter Capacity 300 Sight Range 16 Terrain Scan Density 10 Evasion (%) 50 Item Schematics ----------------- None Robot Schematics ------------------ None Fabricated ------------ Nothing Alien Tech Used ----------------- None Achievements -------------- None Challenges ------------ None Game ------ Seed LargeIntegrityCharge Manual? 0 Play Time 00:05:51 Cumulative 89.7 hours Start 2023.04.09 @ 23:40:19 End 2023.04.09 @ 23:45:03 Sessions 1 Manual Loads 0 Difficulty Rogue Special Mode None Game No. 130 Rogue 130 Adventurer 0 Explorer 0 Win Type - Total 2 Types 2/0/0/0/0/0/0/0/0 Lore% 53 Gallery% 55 Achievement% 45 Wizard Run 0 Options --------- ASCII 0 Keyboard 0 Movement Numpad Keybinds 0 Fullscreen 1 Font 12/Smallcaps Map View 83x54 Tactical HUD 1 Map Filters NONE Filters NONE Steam 1 RUN: c7b5058a-f663-4441-844b-52039e6580ce